[Event "Romanian GP Final KO 2023"]
[Site "Alba Iulia"]
[Date "2023.12.05"]
[Round "2.3"]
[White "Ghimpu, Samuel-Timotei"]
[Black "David, Alexandru-Vasile"]
[Result "1-0"]
[ECO "A07"]
[WhiteElo "2472"]
[BlackElo "2372"]
[Annotator "RC"]
[PlyCount "98"]
[EventDate "2023.12.04"]
[EventType "k.o."]
[EventCountry "ROU"]
[SourceTitle "playchess.com"]
[Source "ChessBase"]
[SourceQuality "1"]
[TimeControl "900+5"]

1. Nf3 {[%emt 0:10:11]} d5 {[%emt 0:11:12]} 2. g3 {[%emt 0:00:06]} Nf6 {[%emt 0:00:06]} 3. Bg2 {[%emt 0:00:06]} e6 {[%emt 0:00:05]} 4. O-O {[%emt 0:00:06]} Be7 {[%emt 0:00:06]} 5. d3 {[%emt 0:00:06]} O-O {[%emt 0:00:08]} 6. Nbd2 {[%emt 0:00:06]} Nc6 {[%emt 0:00:19]} 7. e4 {[%emt 0:00:08]} e5 {[%emt 0:00:11]} 8. exd5 {[%emt 0:00:08]} Nxd5 {[%emt 0:00:07]} 9. c3 {[%emt 0:00:07]} Kh8 {[%emt 0:00:11]} 10. Re1 {[%emt 0:00:06]} f6 {[%emt 0:00:07]} 11. a4 {[%emt 0:00:08]} a5 {[%emt 0:00:06]} 12. Nc4 {[%emt 0:00:09]} Be6 {[%emt 0:00:12]} 13. Nh4 {[%emt 0:00:15]} Qd7 {[%emt 0:00:07]} 14. Qh5 {[%emt 0:00:18]} Bf7 {[%emt 0:00:07]} 15. Qf3 {[%emt 0:00:15]} Rfe8 {[%emt 0:00:26]} 16. Nf5 {[%emt 0:00:11]} Bf8 {[%emt 0:00:06]} 17. Bd2 {[%emt 0:00:15]} Rad8 {[%emt 0:00:07]} 18. Rad1 {[%emt 0:00:06]} Nb6 {[%emt 0:00:08]} 19. Nxb6 {[%emt 0:00:08]} cxb6 {[%emt 0:00:07]} 20. Be3 {[%emt 0:00:10]} Bd5 {[%emt 0:00:06]} 21. Qxd5 {[%emt 0:00:11]} Qxd5 {[%emt 0:00:06]} 22. Bxd5 {[%emt 0:00:06]} Rxd5 {[%emt 0:00:06]} 23. Bxb6 {[%emt 0:00:07]} g6 {[%emt 0:00:24]} 24. Ne3 {[%emt 0:00:06]} Rd7 {[%emt 0:00:06]} 25. Kf1 {[%emt 0:00:07]} Kg7 {[%emt 0:00:12]} 26. Nc4 {[%emt 0:00:06]} Kf7 {[%emt 0:00:11]} 27. Ke2 {[%emt 0:00:14]} Ra8 {[%emt 0:00:14]} 28. Be3 {[%emt 0:00:10]} Rb8 {[%emt 0:00:12]} 29. Rd2 {[%emt 0:00:14]} b5 {[%emt 0:00:09]} 30. axb5 {[%emt 0:00:06]} Rxb5 {[%emt 0:00:07]} 31. Ra1 {[%emt 0:00:13]} Rdb7 {[%emt 0:00:06]} 32. f3 {[%emt 0:00:14]} Ke6 {[%emt 0:00:08]} 33. d4 {[%emt 0:00:13]} exd4 {[%emt 0:00:09]} 34. Bxd4 {[%emt 0:00:06]} Nxd4+ {[%emt 0:00:20]} 35. Rxd4 {[%emt 0:00:07]} Bc5 {[%emt 0:00:06]} 36. Rd2 {[%emt 0:00:25]} Ra7 {[%emt 0:00:15]} 37. Rd8 {[%emt 0:00:11]} a4 {[%emt 0:00:11]} 38. Kd1 {[%emt 0:00:13]} Be7 {[%emt 0:00:09]} 39. Rd3 {[%emt 0:00:13]} a3 {[%emt 0:00:36]} 40. b4 {[%emt 0:00:09]} a2 {[%emt 0:00:10]} 41. Kc2 {[%emt 0:00:09]} Bxb4 {[%emt 0:00:14]} 42. cxb4 {[%emt 0:00:11]} Rxb4 {[%emt 0:00:06]} 43. Nd2 {[%emt 0:00:10]} Rba4 {[%emt 0:00:08]} 44. Ne4 {[%emt 0:00:14]} Rc4+ {[%emt 0:00:06]} 45. Rc3 {[%emt 0:00:10]} Rxc3+ {[%emt 0:00:08]} 46. Nxc3 {[%emt 0:00:07]} Ra5 {[%emt 0:00:09]} 47. Rxa2 {[%emt 0:00:07]} Rh5 {[%emt 0:00:05]} 48. Kd3 {[%emt 0:00:07]} f5 {[%emt 0:00:07]} 49. Ke3 {[%emt 0:00:06]} g5 {[%emt 0:00:06]} 1-0

[Event "Romanian GP Final KO 2023"]
[Site "Alba Iulia"]
[Date "2023.12.05"]
[Round "3.1"]
[White "Petkov, Momchil"]
[Black "Gavrilescu, David"]
[Result "1/2-1/2"]
[ECO "D02"]
[WhiteElo "2499"]
[BlackElo "2534"]
[Annotator "TA"]
[PlyCount "47"]
[EventDate "2023.12.04"]
[EventType "k.o."]
[EventCountry "ROU"]
[SourceTitle "playchess.com"]
[Source "ChessBase"]
[SourceQuality "1"]
[TimeControl "900+5"]

{[%evp 9,47,-31,0,0,2,14,14,0,14,12,12,13,11,10,22,5,8,3,15,0,13,15,14,8,6,0,7,0,0,0,0,0,14,10,27,20,15,15,20,22]} 1. d4 {[%emt 0:00:03]} d5 {[%emt 0:00:02]} 2. Nf3 {[%emt 0:00:02]} Nf6 {[%emt 0:00:02]} 3. Bf4 {[%emt 0:00:03]} c5 {[%emt 0:00:02]} 4. e3 {[%emt 0:00:02]} Nc6 {[%emt 0:00:02]} 5. Bb5 {[%emt 0:00:02]} cxd4 {[%emt 0:00:57]} 6. exd4 {[%emt 0:00:02] D02: 1 d4 d5 2 Nf3 sidelines, including 2...Nf6 3 g3 and 2...Nf6 3 Bf4.} Bg4 {[%emt 0:00:04]} 7. Nbd2 {[%emt 0:00:34]} e6 {[%emt 0:00:03]} 8. O-O {[%emt 0:00:13]} Bd6 {[%emt 0:00:05]} 9. Bxd6 {[%emt 0:00:03]} Qxd6 {[%emt 0:00:02]} 10. c3 {[%emt 0:00:04]} O-O {[%emt 0:00:08]} 11. Re1 {[%emt 0:00:02]} Nd7 {[%emt 0:01:05]} 12. a4 {[%emt 0:00:57] [#]} Bh5 $146 {[%emt 0:00:36]} ({Predecessor:} 12... Rfe8 13. a5 a6 14. Be2 e5 15. dxe5 Ndxe5 16. Nxe5 Bxe2 17. Rxe2 Nxe5 18. Nb3 Nc4 {½-½ Kollars,D (2633)-Gurel,E (2514) CRO-chT1A 31st 2023 (5.1)}) 13. Bd3 {[%emt 0:03:39]} Rfe8 {[%emt 0:02:06]} 14. Qb1 {[%emt 0:00:09]} Bg6 {[%emt 0:00:09]} 15. Bxg6 {[%emt 0:00:03]} hxg6 {[%emt 0:00:02]} 16. Qd3 {[%emt 0:00:58]} e5 {[%emt 0:00:19]} 17. dxe5 {[%emt 0:00:02]} Ndxe5 {[%emt 0:00:02]} 18. Nxe5 {[%emt 0:00:16]} Nxe5 {[%emt 0:00:22]} 19. Qd4 {[%emt 0:01:07]} Nc6 {[%emt 0:00:12]} 20. Qh4 {[%emt 0:00:57]} f6 {[%emt 0:01:18]} 21. Nf3 {[%emt 0:01:04]} Kf7 {[%emt 0:00:50]} 22. Rad1 {[%emt 0:00:25][%cal Ba1d1,Bd1e1,Be1e8][%mdl 32]} Rxe1+ {[%emt 0:00:14]} 23. Rxe1 {[%emt 0:00:02]} Re8 {[%emt 0:00:03]} 24. Rxe8 {[%emt 0:00:26] An uneventful encounter.   Weighted Error Value: White=0.04 (flawless) /Black=0.08 (flawless)} 1/2-1/2

[Event "Romanian GP Final KO 2023"]
[Site "Alba Iulia"]
[Date "2023.12.05"]
[Round "3.1"]
[White "Ardelean, George-Catalin"]
[Black "Nanu, Costica-Ciprian"]
[Result "1-0"]
[ECO "B13"]
[WhiteElo "2433"]
[BlackElo "2524"]
[Annotator "RC"]
[PlyCount "117"]
[EventDate "2023.12.04"]
[EventType "k.o."]
[EventCountry "ROU"]
[SourceTitle "playchess.com"]
[Source "ChessBase"]
[SourceQuality "1"]
[TimeControl "900+5"]

1. e4 {[%emt 0:00:10]} c6 {[%emt 0:00:01]} 2. d4 {[%emt 0:00:05]} d5 {[%emt 0:00:01]} 3. exd5 {[%emt 0:00:02]} cxd5 {[%emt 0:00:00]} 4. Bf4 {[%emt 0:00:05]} Nc6 {[%emt 0:00:03]} 5. c3 {[%emt 0:00:14]} Bf5 {[%emt 0:00:14]} 6. Nf3 {[%emt 0:00:33]} e6 {[%emt 0:00:01]} 7. Nbd2 {[%emt 0:00:52]} Bd6 {[%emt 0:00:25]} 8. Bxd6 {[%emt 0:00:05]} Qxd6 {[%emt 0:00:01]} 9. Nh4 {[%emt 0:00:04]} Bg6 {[%emt 0:00:24]} 10. Nxg6 {[%emt 0:00:19]} hxg6 {[%emt 0:00:01]} 11. Nf3 {[%emt 0:00:02]} Nf6 {[%emt 0:00:45]} 12. Bd3 {[%emt 0:00:32]} a6 {[%emt 0:00:50]} 13. Qe2 {[%emt 0:00:13]} Qc7 {[%emt 0:00:19]} 14. g3 {[%emt 0:01:14]} Ne7 {[%emt 0:01:24]} 15. Kf1 {[%emt 0:00:34]} Nf5 {[%emt 0:00:36]} 16. Kg2 {[%emt 0:00:17]} Nd6 {[%emt 0:00:58]} 17. Ng5 {[%emt 0:00:29]} Qe7 {[%emt 0:00:42]} 18. h4 {[%emt 0:01:02]} Nh7 {[%emt 0:00:25]} 19. Qe5 {[%emt 0:02:05]} Kf8 {[%emt 0:01:49]} 20. Rae1 {[%emt 0:00:43]} Re8 {[%emt 0:00:35]} 21. Qf4 {[%emt 0:00:40]} Kg8 {[%emt 0:00:22]} 22. Nf3 {[%emt 0:01:01]} Nf8 {[%emt 0:00:32]} 23. Re2 {[%emt 0:01:38]} b5 {[%emt 0:00:50]} 24. Rhe1 {[%emt 0:00:06]} Nc4 {[%emt 0:00:33]} 25. Ng5 {[%emt 0:00:20]} Qf6 {[%emt 0:00:37]} 26. Qg4 {[%emt 0:00:26]} Rc8 {[%emt 0:00:40]} 27. Bb1 {[%emt 0:00:58]} a5 {[%emt 0:00:10]} 28. b3 {[%emt 0:00:17]} Nd6 {[%emt 0:00:06]} 29. Re3 {[%emt 0:00:01]} b4 {[%emt 0:00:20]} 30. cxb4 {[%emt 0:00:31]} axb4 {[%emt 0:00:01]} 31. Rf3 {[%emt 0:00:23]} Nf5 {[%emt 0:00:21]} 32. Bxf5 {[%emt 0:00:05]} gxf5 {[%emt 0:00:06]} 33. Qf4 {[%emt 0:00:01]} Ng6 {[%emt 0:00:13]} 34. Qd2 {[%emt 0:00:12]} Rb8 {[%emt 0:00:38]} 35. Rc1 {[%emt 0:00:29]} Nxh4+ {[%emt 0:01:05]} 36. gxh4 {[%emt 0:00:02]} Rxh4 {[%emt 0:00:01]} 37. Rc7 {[%emt 0:00:21]} Rxd4 {[%emt 0:00:10]} 38. Qc1 {[%emt 0:00:00]} Rf8 {[%emt 0:00:12]} 39. Rg3 {[%emt 0:00:32]} Rg4 {[%emt 0:00:31]} 40. f4 {[%emt 0:00:27]} Rxg3+ {[%emt 0:00:49]} 41. Kxg3 {[%emt 0:00:01]} Qg6 {[%emt 0:00:00]} 42. Rc8 {[%emt 0:00:12]} Qh5 {[%emt 0:00:18]} 43. Rxf8+ Kxf8 44. Qc5+ {[%emt 0:00:13]} Ke8 {[%emt 0:00:04]} 45. Qb5+ {[%emt 0:00:06]} Ke7 {[%emt 0:00:07]} 46. Qxb4+ {[%emt 0:00:02]} Kf6 {[%emt 0:00:02]} 47. Qc3+ {[%emt 0:00:04]} Kg6 {[%emt 0:00:03]} 48. Qf3 {[%emt 0:00:05]} Qh8 {[%emt 0:00:09]} 49. b4 {[%emt 0:00:07]} Qb8 {[%emt 0:00:07]} 50. Qb3 {[%emt 0:00:01]} e5 {[%emt 0:00:05]} 51. Nf3 {[%emt 0:00:05]} exf4+ {[%emt 0:00:04]} 52. Kg2 {[%emt 0:00:01]} Qe8 {[%emt 0:00:05]} 53. Qxd5 {[%emt 0:00:15]} Qe2+ {[%emt 0:00:06]} 54. Kg1 {[%emt 0:00:00]} f6 {[%emt 0:00:13]} 55. Nh4+ {[%emt 0:00:09]} Kh5 {[%emt 0:00:06]} 56. Qf3+ {[%emt 0:00:01]} Qxf3 {[%emt 0:00:06]} 57. Nxf3 {[%emt 0:00:00]} Kg4 {[%emt 0:00:03]} 58. Kf2 {[%emt 0:00:02]} g5 {[%emt 0:00:04]} 59. b5 {[%emt 0:00:01]} 1-0

[Event "Romanian GP Final KO 2023"]
[Site "Alba Iulia"]
[Date "2023.12.05"]
[Round "3.1"]
[White "Secheres, Adrian-Simion"]
[Black "David, Alexandru-Vasile"]
[Result "1-0"]
[ECO "D35"]
[WhiteElo "2381"]
[BlackElo "2372"]
[Annotator "RC"]
[PlyCount "65"]
[EventDate "2023.12.04"]
[EventType "k.o."]
[EventCountry "ROU"]
[SourceTitle "playchess.com"]
[Source "ChessBase"]
[SourceQuality "1"]
[TimeControl "900+5"]

1. d4 {[%emt 0:00:03]} d5 {[%emt 0:00:01]} 2. c4 {[%emt 0:00:08]} e6 {[%emt 0:00:02]} 3. Nc3 {[%emt 0:00:07]} Nf6 {[%emt 0:00:01]} 4. Nf3 {[%emt 0:00:06]} Nbd7 {[%emt 0:00:02]} 5. Bf4 {[%emt 0:00:09]} Bb4 {[%emt 0:00:02]} 6. cxd5 {[%emt 0:00:08]} exd5 {[%emt 0:00:02]} 7. e3 {[%emt 0:00:27]} Ne4 {[%emt 0:00:02]} 8. Nd2 {[%emt 0:04:06]} Nxc3 {[%emt 0:01:28]} 9. bxc3 {[%emt 0:00:01]} Bxc3 {[%emt 0:00:02]} 10. Rc1 {[%emt 0:00:03]} Ba5 {[%emt 0:00:02]} 11. Bd3 {[%emt 0:00:18]} c6 {[%emt 0:00:03]} 12. O-O {[%emt 0:00:49]} Bc7 {[%emt 0:01:02]} 13. Bxc7 {[%emt 0:00:48]} Qxc7 {[%emt 0:00:02]} 14. e4 {[%emt 0:00:01]} dxe4 {[%emt 0:01:42]} 15. Nxe4 {[%emt 0:00:06]} O-O {[%emt 0:00:02]} 16. Qh5 {[%emt 0:00:34]} h6 {[%emt 0:00:03]} 17. Rfe1 {[%emt 0:00:49]} Qf4 {[%emt 0:00:12]} 18. g3 {[%emt 0:00:26]} Nf6 {[%emt 0:00:43]} 19. Qc5 {[%emt 0:00:38]} Qg4 {[%emt 0:03:49]} 20. Nxf6+ {[%emt 0:00:09]} gxf6 {[%emt 0:00:01]} 21. h4 {[%emt 0:01:24]} Be6 {[%emt 0:00:17]} 22. Re4 {[%emt 0:00:20]} Qf3 {[%emt 0:00:01]} 23. Re3 {[%emt 0:00:36]} Qd5 {[%emt 0:00:08]} 24. Qe7 {[%emt 0:00:03]} Qxd4 {[%emt 0:01:18]} 25. Rxe6 {[%emt 0:00:57]} Qxd3 {[%emt 0:00:37]} 26. Rxf6 {[%emt 0:00:02]} Qd2 {[%emt 0:00:19]} 27. Rf1 {[%emt 0:01:11]} Rab8 {[%emt 0:00:15]} 28. Rf4 {[%emt 0:00:18]} f5 {[%emt 0:00:41]} 29. Qe6+ {[%emt 0:00:07]} Kg7 {[%emt 0:00:01]} 30. Qe5+ {[%emt 0:00:11]} Kg6 {[%emt 0:00:43]} 31. Rd4 {[%emt 0:00:06]} Qxa2 {[%emt 0:03:49]} 32. Rd6+ {[%emt 0:00:02]} Kh5 {[%emt 0:00:04]} 33. Qg7 {[%emt 0:00:03]} 1-0

[Event "Romanian GP Final KO 2023"]
[Site "Alba Iulia"]
[Date "2023.12.05"]
[Round "3.1"]
[White "Serban, Cristian-Stefan"]
[Black "Lupulescu, Constantin"]
[Result "0-1"]
[ECO "E01"]
[WhiteElo "2332"]
[BlackElo "2581"]
[Annotator "TA"]
[PlyCount "118"]
[EventDate "2023.12.04"]
[EventType "k.o."]
[EventCountry "ROU"]
[SourceTitle "playchess.com"]
[Source "ChessBase"]
[SourceQuality "1"]
[TimeControl "900+5"]

{[%evp 9,118,2,17,16,12,15,22,22,22,17,17,23,35,18,23,34,31,32,21,22,39,32,39,20,26,24,20,26,34,0,0,0,0,-18,-18,-23,0,-52,-37,-45,-57,-47,-42,-142,-108,-182,-162,-206,-165,-170,-120,-1006,-1038,-1119,-1065,-1541,-1506,-29987,-29982,-29990,-29991,-29991,0,0,0,0,1005,1015,2321,2112,1990,0,0,-6800,724,-29989,-29987,-29992,-760,-753,-745,-740,-732,-702,-661,-607,-606,-533,-483,-510,-530,-1593,-1605,-1491,-1487,-1373,-1373,-1163,-1163,-892,-882,-674,-582,-6443,-5052,-12359,-12501,-12792,-12797,-29994,-29995]} 1. d4 {[%emt 0:00:05]} Nf6 {[%emt 0:00:05]} 2. c4 {[%emt 0:00:05]} e6 {[%emt 0:00:05]} 3. Nf3 {[%emt 0:00:05]} d5 {[%emt 0:00:05]} 4. g3 {[%emt 0:00:05]} Bb4+ {[%emt 0:00:05]} 5. Bd2 {[%emt 0:00:05]} Bd6 {[%emt 0:00:05]} 6. Bg2 {[%emt 0:00:05] E01: Catalan: Early deviations.} c6 {[%emt 0:00:05]} 7. O-O {[%emt 0:00:05]} Nbd7 {[%emt 0:00:05]} 8. Bc3 {[%emt 0:00:05] The position is equal.} Ne4 {[%emt 0:00:05]} 9. Nbd2 {[%emt 0:00:05]} f5 {[%emt 0:00:41]} 10. Nxe4 {[%emt 0:00:02]} fxe4 {[%emt 0:00:27]} 11. Ne5 {[%emt 0:00:02] [#]} O-O $146 {[%emt 0:01:14]} ({Predecessor:} 11... Nxe5 12. dxe5 Be7 13. f4 O-O 14. Rc1 b6 15. h4 Ba6 16. Bh3 Qd7 17. b3 Rad8 {1-0 Lemaire,M (1973)-Faust,D (1940) W-ch WS/H/957 email 2023}) 12. f4 {[%emt 0:00:02]} Nxe5 {[%emt 0:00:40]} 13. dxe5 {[%emt 0:00:02]} Bc5+ {[%emt 0:00:42]} 14. Bd4 {[%emt 0:00:02]} Qb6 {[%emt 0:00:37]} 15. e3 {[%emt 0:00:02]} Bd7 {[%emt 0:00:34]} 16. Rf2 {[%emt 0:00:11]} Bxd4 {[%emt 0:00:55]} 17. exd4 {[%emt 0:00:02]} a5 {[%emt 0:02:02]} (17... dxc4 18. Bxe4 Be8 19. Rc1 $16) 18. Rc1 {[%emt 0:02:07]} a4 {[%emt 0:01:12]} 19. c5 {[%emt 0:00:02]} Qa5 {[%emt 0:00:24]} 20. Rc3 {[%emt 0:00:54]} b6 {[%emt 0:00:04]} 21. a3 {[%emt 0:00:59]} Rab8 {[%emt 0:01:19]} 22. Bh3 {[%emt 0:00:44]} b5 {[%emt 0:01:20]} 23. g4 {[%emt 0:01:16]} (23. Qd2 $1 $11) 23... b4 $15 {[%emt 0:00:26]} 24. Rg3 {[%emt 0:01:02]} bxa3 {[%emt 0:00:06]} 25. Rxa3 {[%emt 0:00:02]} Rb4 {[%emt 0:00:22]} 26. f5 {[%emt 0:02:12]} (26. Qe1 $15) 26... Qb5 $17 {[%emt 0:00:17]} 27. Bf1 {[%emt 0:01:21] [#]} (27. fxe6 $17 {was necessary.} Bxe6 28. Rxf8+ Kxf8 29. Bf1) 27... Qb8 $1 $19 {[%emt 0:00:22]} 28. Rxa4 {[%emt 0:00:27]} exf5 {[%emt 0:00:29]} 29. gxf5 {[%emt 0:00:03]} Bxf5 {[%emt 0:00:14]} (29... Rxb2 30. Rxb2 Qxb2 31. e6 $17) (29... Rxf5 30. Rxb4 Qxb4 31. Qd2 Qxd2 32. Rxd2 $15) 30. Qa1 $2 {[%emt 0:01:20][%mdl 8192]} (30. Rxb4 $17 Qxb4 31. h3) 30... e3 {[%emt 0:00:33]} 31. Rxf5 {[%emt 0:03:23] [#]} Rxa4 $1 {[%emt 0:00:07]} (31... Rxf5 $2 32. Ra8 $18) 32. Qxa4 {[%emt 0:00:01]} Rxf5 {[%emt 0:00:02]} 33. Qxc6 {[%emt 0:00:02][%mdl 4096] Endgame KQR-KQB} Qf8 {[%emt 0:01:09]} (33... Qxb2 $2 34. Qxd5+ Kf8 35. Qd6+ Ke8 36. Qe6+ Kd8 37. Qxf5 $18) 34. Qxd5+ {[%emt 0:00:01]} Kh8 {[%emt 0:00:00]} 35. Bd3 {[%emt 0:00:03]} Rf2 $2 {[%emt 0:00:50]} (35... Rf1+ {mates} 36. Kg2 e2 {[%mdl 64] Decoy} 37. Bxe2 Qf2+ 38. Kh3 Qe3+ 39. Kh4 g5+ 40. Kg4 Qf4+ 41. Kh3 Qh4+ 42. Kg2 Rf2+ 43. Kh1 Qxh2#) 36. Qe4 $36 {[%emt 0:00:14][%csl Gd3,LRe3,LRh7][%cal Re4h7][%mdl 2048] White has good play.} g6 {[%emt 0:00:04][%cal Of2f1] The board is on fire.} 37. e6 {[%emt 0:00:04]} Qe7 $2 {[%emt 0:00:12][%mdl 8192]} (37... Rxb2 $2 38. Qxe3 (38. Qe5+ Kg8 $16) 38... Qb8 39. Qh6 $18) (37... Rf1+ 38. Kg2 Qf2+ 39. Kh3 $16) (37... Qb8 $11 38. Qe5+ (38. Qxe3 $2 Qxh2#) 38... Qxe5 39. dxe5 Kg7) 38. Qxe3 $18 {[%emt 0:00:09]} Rxb2 {[%emt 0:00:01]} 39. d5 {[%emt 0:00:09] d6 would kill now.} Ra2 {[%emt 0:00:04]} 40. Qe5+ $2 {[%emt 0:00:09]} ({White should try} 40. Bc4 $18 {White threatens Qe5+ and mate.} Ra1+ 41. Kg2) 40... Kg8 $11 {[%emt 0:00:01]} 41. d6 $2 {[%emt 0:00:04][%mdl 8192] White is now going downhill.} (41. Be2 $11) 41... Qb7 $4 {[%emt 0:00:03][%mdl 8192]} (41... Qh4 $19 42. Qe2 Rxe2 43. Bxe2 Qe1+ 44. Bf1 Qxe6) 42. Be4 $4 {[%emt 0:00:28][%mdl 8192]} (42. Be2 $18 Qb1+ 43. Kf2) 42... Qb3 {[%emt 0:00:13][%cal Rb3d1]} 43. Bg2 {[%emt 0:00:07]} Qd1+ {[%emt 0:00:02]} (43... Qc2 $142 44. Qg3 Qxc5+ 45. Kf1 Qf5+ 46. Bf3 Qd3+ 47. Ke1 Qd2+ 48. Kf1 Ra1+ 49. Bd1 Rxd1+ 50. Qe1 Rxe1#) 44. Bf1 $19 {[%emt 0:00:03]} Qd2 {[%emt 0:00:01]} 45. Qg3 {[%emt 0:00:05] Prevents Qf2+.} Qd4+ {[%emt 0:00:05]} 46. Kh1 {[%emt 0:00:02]} Qd5+ {[%emt 0:00:01]} (46... Qxc5 47. Qb3 Qc6+ 48. Kg1 Qc5+ 49. Kh1 Qc6+ 50. Kg1 Qc5+ 51. Kh1 $11) 47. Kg1 {[%emt 0:00:05] Strongly threatening Qe3.} Qxc5+ {[%emt 0:00:01]} (47... Qxe6 48. Qf4 Ra1 49. Qd4 $11) 48. Kh1 {[%emt 0:00:00]} Qd5+ {[%emt 0:00:01]} 49. Kg1 {[%emt 0:00:01]} Qxe6 {[%emt 0:00:05] And now ...Rd2 would win.} 50. d7 {[%emt 0:00:05]} Qb6+ {[%emt 0:00:01]} (50... Qxd7 51. Bc4+ Kg7 52. Qc3+ (52. Bxa2 Qd4+ 53. Qf2 Qg4+ 54. Kf1 Qd1+ 55. Qe1 Qf3+ 56. Kg1 Qg4+ 57. Qg3 Qd4+ 58. Qf2 Qg4+ 59. Kh1 Qd1+ 60. Qg1 Qf3+ 61. Qg2 Qd1+ 62. Qg1 Qf3+ 63. Qg2 Qd1+ 64. Qg1 $11) 52... Kh6 53. Qe3+ (53. Bxa2 Qa7+ 54. Kf1 Qxa2 $11) 53... Kg7 54. Bxa2 $16) 51. Kh1 {[%emt 0:00:02]} Qc6+ {[%emt 0:00:04]} (51... Ra1 52. Qb3+ Qxb3 53. d8=Q+ Kf7 54. Qd7+ Kf8 55. Qd8+ Kf7 56. Qd7+ Kf8 57. Qd8+ Kf7 $11) 52. Kg1 {[%emt 0:00:01]} Qc5+ {[%emt 0:00:01]} (52... Qxd7 53. Bc4+ Kg7 54. Qe5+ (54. Bxa2 Qd4+ 55. Qf2 Qg4+ 56. Qg3 Qd4+ 57. Qf2 Qg4+ 58. Kf1 Qd1+ 59. Qe1 Qf3+ 60. Kg1 Qg4+ 61. Qg3 Qd4+ $11) 54... Kh6 55. Qe3+ (55. Bxa2 Qa7+ 56. Kf1 Qxa2 $11) 55... Kg7 56. Bxa2 $16) 53. Kh1 {[%emt 0:00:02]} Qd5+ {[%emt 0:00:01]} 54. Kg1 {[%emt 0:00:01]} Qd4+ {[%emt 0:00:02]} (54... Qxd7 55. Bc4+ Kg7 56. Qc3+ (56. Bxa2 Qd4+ 57. Qf2 Qd1+ 58. Qf1 Qg4+ 59. Qg2 Qd4+ 60. Qf2 Qd1+ 61. Qf1 Qg4+ 62. Qg2 Qd4+ 63. Qf2 $11) 56... Kh6 57. Qe3+ (57. Bxa2 Qa7+ 58. Kf1 Qxa2 $11) 57... Kg7 58. Bxa2 $16) 55. Kh1 {[%emt 0:00:01]} Rd2 {[%emt 0:00:09][%cal Og8g7] ...Kg7! is the strong threat.} ({Weaker is} 55... Qxd7 56. Qb3+ (56. Bc4+ Kg7 $11) 56... Kg7 57. Qxa2 $11) 56. d8=R+ {[%emt 0:00:44]} Qxd8 {[%emt 0:00:02]} 57. Bc4+ {[%emt 0:00:00]} Kg7 {[%emt 0:00:17] ( -> ...Qf6)} 58. Qe5+ {[%emt 0:00:00]} Qf6 {[%emt 0:00:14]} 59. Qc7+ {[%emt 0:00:02]} Kh6 {[%emt 0:00:01] Weighted Error Value: White=1.42/Black=0.20 (precise)} 0-1

[Event "Romanian GP Final KO 2023"]
[Site "Alba Iulia"]
[Date "2023.12.05"]
[Round "3.1"]
[White "Ciolacu, Alessia-Mihaela"]
[Black "Toma, Radu-Cristian"]
[Result "0-1"]
[ECO "D27"]
[WhiteElo "2175"]
[BlackElo "2387"]
[Annotator "RC"]
[PlyCount "132"]
[EventDate "2023.12.04"]
[EventType "k.o."]
[EventCountry "ROU"]
[SourceTitle "playchess.com"]
[Source "ChessBase"]
[SourceQuality "1"]
[TimeControl "900+5"]

1. d4 {[%emt 0:00:03]} d5 {[%emt 0:00:03]} 2. c4 {[%emt 0:00:02]} dxc4 {[%emt 0:00:02]} 3. e3 {[%emt 0:00:03]} Nf6 {[%emt 0:00:02]} 4. Bxc4 {[%emt 0:00:03]} a6 {[%emt 0:00:02]} 5. Nf3 {[%emt 0:00:03]} e6 {[%emt 0:00:03]} 6. O-O {[%emt 0:00:06]} Nbd7 {[%emt 0:00:02]} 7. a4 {[%emt 0:00:03]} c5 {[%emt 0:00:02]} 8. Qe2 {[%emt 0:00:06]} Bd6 {[%emt 0:00:13]} 9. dxc5 {[%emt 0:00:08]} Bxc5 {[%emt 0:00:03]} 10. Nc3 {[%emt 0:00:11]} O-O {[%emt 0:01:39]} 11. e4 {[%emt 0:00:15]} Qc7 {[%emt 0:00:11]} 12. Bg5 {[%emt 0:00:34]} Ng4 {[%emt 0:00:40]} 13. Rac1 {[%emt 0:01:12]} Bd6 {[%emt 0:02:27]} 14. h3 {[%emt 0:02:07]} Nh2 {[%emt 0:01:04]} 15. Nxh2 {[%emt 0:03:32]} Bxh2+ {[%emt 0:00:02]} 16. Kh1 {[%emt 0:00:02]} Bf4 {[%emt 0:00:12]} 17. Bxf4 {[%emt 0:01:22]} Qxf4 {[%emt 0:00:02]} 18. Rfd1 {[%emt 0:00:07]} Ne5 {[%emt 0:00:14]} 19. Ba2 {[%emt 0:00:07]} Nc6 {[%emt 0:00:30]} 20. Rd2 {[%emt 0:00:47]} h6 {[%emt 0:02:37]} 21. Rcd1 {[%emt 0:00:20]} b6 {[%emt 0:00:45]} 22. Rd6 {[%emt 0:00:32]} Bb7 {[%emt 0:00:12]} 23. Rd7 {[%emt 0:00:27]} Rab8 {[%emt 0:00:04]} 24. Bc4 {[%emt 0:00:06]} Ne5 {[%emt 0:00:21]} 25. R7d4 {[%emt 0:00:35]} Nxc4 {[%emt 0:00:17]} 26. Rxc4 {[%emt 0:00:03]} Rfd8 {[%emt 0:00:48]} 27. Rcd4 {[%emt 0:00:04]} Rxd4 {[%emt 0:00:16]} 28. Rxd4 {[%emt 0:00:02]} Rc8 {[%emt 0:00:49]} 29. Qd2 {[%emt 0:01:16]} Qxd2 {[%emt 0:00:30]} 30. Rxd2 {[%emt 0:00:02]} Bc6 {[%emt 0:00:12]} 31. f3 {[%emt 0:00:50]} Kf8 {[%emt 0:00:03]} 32. Kg1 {[%emt 0:00:10]} Ke7 {[%emt 0:00:03]} 33. Kf2 {[%emt 0:00:06]} f6 {[%emt 0:00:21]} 34. Ke3 {[%emt 0:01:15]} Be8 {[%emt 0:00:09]} 35. Rd4 {[%emt 0:00:04]} a5 {[%emt 0:00:33]} 36. h4 {[%emt 0:00:17]} Rc5 {[%emt 0:00:08]} 37. g4 {[%emt 0:00:12]} h5 {[%emt 0:00:12]} 38. Kd3 {[%emt 0:00:20]} g5 {[%emt 0:00:52]} 39. hxg5 {[%emt 0:00:06]} Rxg5 {[%emt 0:00:01]} 40. gxh5 {[%emt 0:00:20]} Bxh5 {[%emt 0:00:02]} 41. f4 {[%emt 0:00:13]} Rg2 {[%emt 0:00:05]} 42. b3 {[%emt 0:00:03]} Be8 {[%emt 0:00:21]} 43. e5 {[%emt 0:00:09]} fxe5 {[%emt 0:00:22]} 44. fxe5 {[%emt 0:00:02]} Rg5 {[%emt 0:00:18]} 45. Kc4 {[%emt 0:00:12]} Rxe5 {[%emt 0:00:09]} 46. Rh4 {[%emt 0:00:03]} Rc5+ {[%emt 0:00:05]} 47. Kd3 {[%emt 0:00:03]} Bg6+ {[%emt 0:00:05]} 48. Kd2 {[%emt 0:00:03]} Rg5 {[%emt 0:00:07]} 49. Rh8 {[%emt 0:00:13]} Rg2+ {[%emt 0:00:06]} 50. Ne2 {[%emt 0:00:02]} Kd6 {[%emt 0:00:14]} 51. Rg8 {[%emt 0:00:05]} Be4 {[%emt 0:00:08]} 52. Rxg2 {[%emt 0:00:08]} Bxg2 {[%emt 0:00:02]} 53. Ke3 {[%emt 0:00:04]} Bd5 {[%emt 0:00:05]} 54. Nc1 {[%emt 0:00:03]} e5 {[%emt 0:00:06]} 55. Kd3 {[%emt 0:00:02]} Kc5 {[%emt 0:00:06]} 56. Kc3 {[%emt 0:00:01]} Bc6 {[%emt 0:00:10]} 57. Nd3+ {[%emt 0:00:12]} Kd5 {[%emt 0:00:04]} 58. Nb2 {[%emt 0:00:01]} b5 {[%emt 0:00:16]} 59. axb5 {[%emt 0:00:05]} Bxb5 {[%emt 0:00:02]} 60. b4 {[%emt 0:00:15]} a4 {[%emt 0:00:03]} 61. Nd1 {[%emt 0:00:01]} e4 {[%emt 0:00:18]} 62. Ne3+ {[%emt 0:00:05]} Ke5 {[%emt 0:00:03]} 63. Nc4+ {[%emt 0:00:04]} Bxc4 {[%emt 0:00:03]} 64. Kxc4 {[%emt 0:00:01]} e3 {[%emt 0:00:04]} 65. Kd3 {[%emt 0:00:02]} a3 {[%emt 0:00:01]} 66. b5 {[%emt 0:00:05]} a2 {[%emt 0:00:24]} 0-1